bitfinex/quotes_ETHUSD_20240714
["timestamp","ask_amount","ask_price","bid_price","bid_amount"]
[1720931867937,0.34058192,3196.5,3195.3,0.59956179]
[1720931868273,0.07822998,3196.4,3195.3,0.59956179]
[1720931870327,2.4985,3196.3,3195.3,0.04956179]
[1720931870532,2.4985,3196.3,3194.8,7.42]
[1720931870533,0.84332354,3196.2,3194.8,7.42]
[1720931870774,0.84332354,3196.2,3194.9,0.04960979]
[1720931870972,3.84332354,3196.2,3194.9,0.04960979]
[1720931871535,1.939,3196.0,3194.9,0.04960979]
[1720931871733,0.52200105,3195.9,3194.9,0.04960979]
[1720931871938,0.52200105,3195.9,3194.3,2.4899]
[1720931872251,0.52200105,3195.9,3194.4,0.0496698]
[1720931876579,0.52200105,3195.9,3194.5,0.55]
[1720931876580,0.44375,3195.9,3194.5,0.55]
[1720931876873,0.538275,3195.8,3194.6,2.53954579]
[1720931877177,0.538275,3195.8,3194.7,0.55]
[1720931877383,0.538275,3195.8,3194.8,0.04987332]
[1720931877672,3.538275,3195.8,3194.8,0.04987332]
[1720931877847,0.538275,3195.8,3194.8,0.04987332]
[1720931878282,0.07824425,3195.7,3194.8,0.04987332]
[1720931878653,0.36165193,3195.6,3194.6,9.9099]
[1720931878880,0.36165193,3195.6,3194.9,0.04986132]
[1720931879041,0.36165193,3195.6,3194.6,7.42]
[1720931879246,3.36165193,3195.6,3195.0,0.04984932]
[1720931879450,3.36165193,3195.6,3194.6,7.42]
[1720931879660,0.33616519,3195.5,3195.1,0.04983732]
[1720931879941,0.07825423,3195.4,3195.2,0.04982532]
[1720931880142,0.32771154,3195.4,3194.6,7.42]
[1720931880341,0.32771154,3195.4,3194.7,0.04988532]
[1720931880571,0.07825747,3195.3,3194.7,0.04988532]
[1720931880773,0.32771154,3195.4,3194.7,0.04988532]
[1720931881148,0.32771154,3195.4,3194.7,2.53978532]
[1720931882144,0.32771154,3195.4,3194.7,3.53576385]
[1720931882976,0.32771154,3195.4,3194.8,0.599843]
[1720931883157,0.32771154,3195.4,3194.9,2.54028136]
[1720931884570,0.32771154,3195.4,3195.0,0.59983324]
[1720931884780,0.32771154,3195.4,3195.1,0.05035736]
[1720931884987,0.32771154,3195.4,3195.1,0.6723801]
[1720931885197,0.07824026,3196.6,3195.1,0.6723801]
[1720931885486,0.32766147,3196.1,3195.3,3.12957]
[1720931885721,0.07822898,3197.0,3195.4,0.55]
[1720931885856,0.07822898,3197.0,3195.5,0.367957]
[1720931885857,0.32765566,3196.1,3195.5,0.367957]
[1720931886057,0.32765566,3196.1,3195.4,0.60021081]
[1720931886284,0.07822898,3197.0,3195.6,0.05018682]
[1720931886484,0.07822898,3197.0,3195.5,0.05019881]
[1720931886485,0.32765818,3196.1,3195.5,0.05019881]
[1720931886653,0.07822898,3197.0,3195.7,0.05017482]
[1720931886849,0.07822898,3197.0,3195.6,0.05018682]
[1720931887178,0.3391729,3196.9,3195.7,0.05017482]
[1720931887370,0.3391729,3196.9,3195.4,0.55]
[1720931887550,0.66682967,3196.9,3195.5,0.05019881]
[1720931888045,0.61682967,3196.9,3195.6,0.55]
[1720931888251,0.69505285,3196.9,3195.6,0.04994669]
[1720931888452,0.69505285,3196.9,3195.3,7.42]
[1720931888651,1.00855285,3196.9,3195.7,0.0499347]
[1720931888889,4.00855285,3196.9,3195.4,1.53755]
[1720931889089,3.0,3196.8,3195.8,0.0499227]
[1720931889291,0.07822637,3196.7,3195.3,7.42]
[1720931889585,2.3539,3196.5,3195.2,2.4555]
[1720931889789,0.31362986,3196.4,3195.4,0.04995544]
[1720931890082,3.31362986,3196.4,3195.2,2.4555]
[1720931890485,3.31362986,3196.4,3195.3,0.04996744]
[1720931890873,3.31362986,3196.4,3195.2,2.4555]
[1720931891078,3.31362986,3196.4,3195.4,0.04998021]
[1720931891377,0.56675299,3196.3,3195.2,2.4555]
[1720931891581,0.07823976,3196.2,3195.5,0.04996821]
[1720931891780,0.07823976,3196.2,3195.2,2.4555]
[1720931891950,0.07823976,3196.2,3195.3,0.04999221]
[1720931892150,0.07823976,3196.2,3194.8,2.4555]
[1720931892385,0.07823976,3196.2,3194.9,0.6000402]
[1720931892768,3.07823976,3196.2,3194.9,0.6000402]
[1720931893587,5.36745862,3196.2,3194.9,0.6000402]
[1720931893891,5.37007247,3196.2,3194.9,0.59556097]
[1720931894091,0.60928255,3196.1,3194.9,0.59556097]
[1720931894294,0.07824102,3196.0,3194.9,0.59556097]
[1720931895086,0.07824102,3196.0,3194.9,0.0500402]
[1720931895288,3.07824102,3196.0,3194.9,0.0500402]
[1720931895460,0.07824102,3196.0,3194.9,0.0500402]
[1720931895665,0.29793563,3195.9,3194.9,0.0500402]
[1720931898173,0.07824513,3195.8,3194.9,0.0500402]
[1720931898365,2.372865,3195.7,3194.9,0.0500402]
[1720931898567,2.29461873,3195.6,3194.6,7.42]
[1720931898772,2.29461873,3195.4,3194.4,2.4555]
[1720931898985,2.61016744,3195.3,3194.2,7.42]
[1720931899187,0.07826304,3195.2,3194.5,0.04856493]
[1720931899503,3.07826304,3195.2,3194.2,7.42]
[1720931899690,3.07826304,3195.2,3194.6,0.04855293]
[1720931899898,5.37288177,3195.2,3194.2,7.42]
[1720931900071,0.56101689,3195.1,3194.2,7.42]
[1720931900271,0.56101689,3195.1,3194.3,0.04858894]
[1720931900663,2.29647952,3195.2,3194.3,0.04858894]
[1720931901503,2.29647952,3195.1,3194.3,0.04858894]
[1720931902169,2.3088,3195.0,3194.3,0.04858894]
[1720931902683,2.29647952,3195.1,3194.3,0.04858894]
[1720931903011,2.62421966,3195.1,3194.3,0.04858894]
[1720931903180,2.89446793,3195.1,3194.3,0.04858894]
[1720931903582,2.62421966,3195.1,3194.3,0.09847262]
[1720931903913,0.32774014,3195.1,3194.3,0.04858894]
[1720931906189,2.6239047,3195.1,3194.3,0.04858894]
[1720931906909,0.07825642,3195.0,3194.3,0.04858894]
[1720931907513,2.3747716,3195.0,3194.3,0.04858894]
[1720931907716,0.80113117,3195.0,3194.3,0.04858894]
[1720931908011,2.62425532,3195.1,3194.3,0.04858894]
[1720931908220,2.62425532,3195.1,3194.4,2.4553]
[1720931908375,0.32774014,3195.1,3194.5,0.55]
[1720931908573,0.32774014,3195.1,3194.6,0.613577]
[1720931908880,0.32774014,3195.1,3194.7,0.04854093]
[1720931910373,0.32774014,3195.1,3194.7,0.09840612]
[1720931910572,0.32774014,3195.1,3194.8,0.55]
[1720931911001,0.32774014,3195.1,3194.9,0.04857586]
[1720931912074,0.32774014,3195.1,3195.0,0.37286559]
[1720931912275,0.32774014,3195.1,3195.0,0.42142945]
[1720931913069,0.32774014,3195.1,3195.0,0.04856386]
[1720931913382,0.32774014,3195.1,3194.7,7.42]
[1720931913569,0.32774014,3195.1,3195.0,0.04856386]
[1720931913771,0.32774014,3195.1,3194.7,7.42]
[1720931913968,0.32774014,3195.1,3195.0,0.04856386]
[1720931914167,0.32774014,3195.1,3194.7,7.42]
[1720931914487,0.32774014,3195.1,3194.8,1.292]
[1720931914673,0.32774014,3195.1,3194.9,0.04857586]
[1720931917376,0.32774014,3195.1,3194.7,7.42]
[1720931917818,0.32774014,3195.1,3194.8,0.04858786]
[1720931918219,0.32774014,3195.1,3194.7,7.42]
[1720931918425,0.32774014,3195.1,3194.9,0.04857586]
[1720931918625,0.32774014,3195.1,3195.0,0.04856386]
[1720931918925,0.32774014,3195.1,3194.7,8.475035]
[1720931919127,0.32774014,3195.1,3195.0,0.04856386]
[1720931919418,0.32774014,3195.1,3194.7,7.42]
[1720931919626,0.32774014,3195.1,3195.0,0.04856386]
[1720931919787,0.32774014,3195.1,3194.7,7.42]
[1720931919987,0.32774014,3195.1,3195.0,0.04856386]
[1720931920210,0.32774014,3195.1,3194.7,7.42]
[1720931920689,0.32774014,3195.1,3194.8,0.04858786]
[1720931921036,0.32774014,3195.1,3194.4,5.58577]
[1720931921220,0.32774014,3195.1,3194.9,0.04857586]
[1720931921384,0.32774014,3195.1,3195.0,0.04856386]
[1720931922118,0.32774014,3195.1,3194.5,1.850577]
[1720931922331,0.32774014,3195.1,3195.0,0.04856386]
[1720931922623,0.32774014,3195.1,3194.5,0.55]
[1720931922828,0.32774014,3195.1,3195.0,0.04856386]
[1720931922985,0.32774014,3195.1,3194.5,0.55]
[1720931923190,0.32774014,3195.1,3195.0,0.04856386]
[1720931923390,0.32774014,3195.1,3194.5,0.55]
[1720931923697,0.32774014,3195.1,3194.5,1.905577]
[1720931923915,0.32774014,3195.1,3194.6,0.04861186]
[1720931929930,0.32774014,3195.1,3194.6,0.09847894]
[1720931930104,0.32774014,3195.1,3194.7,3.68018]
[1720931930304,0.32774014,3195.1,3194.8,0.04859927]
[1720931930504,0.32774014,3195.1,3194.7,3.68018]
[1720931930731,0.32774014,3195.1,3194.8,0.41661727]
[1720931931300,2.71599781,3195.6,3194.9,2.97055056]
[1720931931301,2.2992574,3195.6,3194.9,2.97055056]
[1720931931508,2.2992574,3195.6,3195.1,3.12979]
[1720931931841,2.62697243,3195.7,3195.2,0.59853796]
[1720931932446,2.2992574,3195.6,3195.2,0.59853796]
[1720931932746,2.62697243,3195.7,3195.2,0.59853796]
[1720931933109,2.2992574,3195.6,3195.2,0.59853796]
[1720931933337,2.2992574,3195.6,3195.2,0.97137076]
[1720931933638,0.32771503,3195.7,3195.2,0.97137076]
[1720931933853,2.62720291,3195.7,3195.2,0.97137076]
[1720931934009,2.62720291,3195.7,3195.2,4.10104076]
[1720931934211,2.62720291,3195.7,3195.2,4.15085886]
[1720931934435,0.32771503,3195.7,3195.3,0.77788299]
[1720931934631,0.32771503,3195.7,3195.4,0.55]
[1720931934836,0.32771503,3195.7,3195.4,0.59845695]
[1720931935345,2.62720291,3195.7,3195.4,0.59845695]
[1720931935652,2.29948788,3195.8,3195.4,3.72787695]
[1720931935962,0.156,3196.3,3195.7,3.12914]
[1720931935963,2.29948788,3196.2,3195.7,3.12914]
[1720931936241,2.45548788,3196.3,3195.8,0.55]
[1720931936451,2.45548788,3196.3,3195.8,0.59824554]
[1720931936605,2.45548788,3196.3,3195.8,4.10006409]
[1720931936816,0.156,3196.3,3196.1,3.12878]
[1720931937146,0.156,3196.3,3196.2,6.09756197]
[1720931937342,0.156,3196.3,3196.2,6.14732211]
[1720931937543,0.156,3196.3,3196.2,7.07492967]
[1720931937751,0.156,3196.3,3196.2,7.02517218]
[1720931939336,0.156,3196.3,3196.2,10.15388218]
[1720931940251,0.156,3196.3,3196.2,7.02517218]
[1720931943364,0.32770997,3197.4,3196.3,3.12859]
[1720931943657,0.32770997,3197.4,3196.4,1.25250522]
[1720931943833,0.32770997,3197.4,3196.4,1.30046228]
[1720931944038,2.2823,3197.3,3196.4,1.30046228]
[1720931948152,0.07820167,3197.2,3196.4,1.30046228]
[1720931948325,0.07820167,3197.2,3196.4,0.04795706]
[1720931948644,5.36051727,3197.3,3195.8,2.2874]
[1720931948853,0.07821731,3197.2,3195.8,2.2874]
[1720931949027,0.07821731,3197.2,3195.9,0.04778908]
[1720931949224,5.36051729,3197.3,3195.9,0.04778908]
[1720931949466,0.56882273,3197.2,3195.9,0.09756578]
[1720931949639,0.56882273,3197.2,3196.0,3.12882]
[1720931949829,0.56882273,3197.2,3196.1,0.04976487]
[1720931950029,0.0782077,3197.1,3196.1,0.04776509]
[1720931950225,3.56882273,3197.2,3196.1,0.04776509]
[1720931950463,0.58511227,3197.1,3195.8,5.41641]
[1720931950651,0.58511227,3197.1,3196.2,0.04778918]
[1720931950848,0.58511227,3197.1,3195.9,0.55]
[1720931951047,0.58511227,3197.1,3196.3,0.04777719]
[1720931951223,0.58511227,3197.1,3195.9,0.55]
[1720931951224,0.0782126,3197.0,3195.9,0.55]
[1720931951426,0.07821729,3197.0,3196.4,0.0477652]
[1720931951630,0.07821729,3197.0,3195.9,0.55]
[1720931951944,0.07821729,3197.0,3196.0,0.04781316]
[1720931952157,0.07821729,3197.0,3195.7,0.55]
[1720931952452,0.07821729,3197.0,3196.1,0.04780117]
[1720931952655,0.58511227,3197.1,3195.7,0.55]
[1720931952837,0.58511227,3197.1,3196.2,0.04778538]
[1720931953039,0.58511227,3197.1,3195.9,3.129]
[1720931953368,3.0,3197.2,3196.0,3.72863594]
[1720931953564,3.0,3197.2,3196.0,3.7764567]
[1720931953739,3.0,3197.2,3196.0,0.6475867]
[1720931953942,3.0,3197.2,3196.0,0.59782076]
[1720931955750,0.07821285,3197.1,3196.0,0.59782076]
[1720931956046,0.30782129,3197.0,3196.0,0.59782076]
[1720931956571,2.36051312,3196.9,3196.0,0.59782076]
[1720931957437,2.2823,3196.9,3196.0,0.59782076]
[1720931960541,2.36051293,3196.9,3196.0,0.59782076]
[1720931960740,2.2823,3196.9,3196.0,0.59782076]
[1720931960946,0.29178578,3196.8,3196.0,0.59782076]
[1720931965760,0.29178578,3196.8,3196.0,0.04782076]
[1720931965961,0.29178578,3196.8,3195.5,3.12937]
[1720931966155,0.29178578,3196.8,3195.7,3.12918]
[1720931966491,0.29178578,3196.8,3195.8,0.59787895]
[1720931966690,0.29178578,3196.8,3195.8,0.97058485]
[1720931967990,0.29178578,3196.8,3195.8,0.59787895]
[1720931967991,0.07821606,3196.7,3195.8,0.59787895]
[1720931968175,0.07821606,3196.7,3195.8,0.04787895]
[1720931968703,0.07821606,3196.7,3195.9,0.04763141]
[1720931968887,0.07821606,3196.7,3195.4,5.41689]
[1720931969090,2.4493,3196.5,3195.5,0.04767939]
[1720931969479,2.4493,3196.5,3195.1,3.12976]
[1720931969989,2.4493,3196.5,3195.2,0.04771538]
[1720931970397,2.29101401,3196.3,3195.2,0.04771538]
[1720931970595,2.4493,3196.1,3195.2,0.04771538]
[1720931970789,2.4493,3196.1,3194.9,5.62229]
[1720931970790,0.3309849,3196.0,3194.9,5.62229]
[1720931970971,0.3309849,3196.0,3195.3,0.04770338]
[1720931971171,0.3309849,3196.0,3194.9,5.62229]
[1720931971371,0.3309849,3196.0,3195.4,0.04769138]
[1720931971570,0.3309849,3196.0,3194.9,5.62229]
[1720931971779,0.3309849,3196.0,3195.0,0.562229]
[1720931971994,0.3309849,3196.0,3195.1,0.55]
[1720931972513,0.3309849,3196.0,3195.2,0.04771538]
[1720931972723,0.25275317,3196.0,3195.2,0.04771538]
[1720931974271,2.77700874,3196.1,3195.2,0.04771538]
[1720931975287,5.06994418,3196.1,3195.2,0.04771538]
[1720931975694,0.07823347,3196.0,3195.2,0.04771538]
[1720931975887,0.07823347,3196.0,3194.6,5.06921]
[1720931976205,2.37273282,3196.0,3194.7,0.59791782]
[1720931976507,0.59320763,3196.0,3194.8,0.56671278]
[1720931976812,2.88812886,3196.0,3194.9,0.59789381]
[1720931978710,2.80989539,3196.0,3194.9,0.59789381]
[1720931978891,2.81043355,3196.0,3194.9,0.59789381]
[1720931979104,0.07824108,3195.9,3194.9,0.59789381]
[1720931979276,0.41526348,3195.9,3194.9,0.59789381]
[1720931979621,0.3370224,3195.9,3194.9,0.59789381]
[1720931979808,0.41526348,3195.9,3194.9,0.59789381]
[1720931979994,0.41526347,3195.9,3194.9,0.59789381]
[1720931980313,0.3370224,3195.9,3194.9,0.59789381]
[1720931980771,0.3370224,3195.9,3195.3,0.81]
[1720931980976,0.26324524,3195.8,3195.3,0.81]
[1720931982680,2.7105572,3195.9,3195.3,0.81]
[1720931982877,2.63231652,3195.9,3195.3,0.81]
[1720931983122,0.3370224,3195.9,3195.4,0.04802375]
[1720931983327,2.29529412,3196.0,3195.4,0.04802375]
[1720931983537,5.29529412,3196.0,3195.5,0.04801176]
[1720931983686,5.29529412,3196.0,3195.3,0.81]
[1720931983887,5.29529412,3196.0,3195.4,0.04802375]
[1720931984816,6.10252441,3196.0,3195.4,0.04802375]
[1720931985939,6.10190675,3196.0,3195.4,0.04802375]
[1720931986094,3.80723029,3196.0,3195.4,0.04802375]
[1720931986896,6.10180429,3196.0,3195.4,0.04802375]
[1720931987098,6.10180429,3196.0,3195.3,0.81]
[1720931987439,0.96611502,3195.9,3195.4,0.04802375]
[1720931987791,0.96611502,3195.9,3195.2,0.81]
[1720931988135,0.8878813,3195.9,3195.4,0.81]
[1720931988429,5.294574,3196.0,3195.2,0.81]
[1720931988734,5.294574,3196.0,3195.3,0.04803575]
[1720931989130,3.0,3196.0,3195.3,0.04803575]
[1720931989350,5.29483762,3196.0,3195.3,0.04803575]
[1720931989631,5.37307718,3196.0,3195.3,0.04803575]
[1720931989829,3.10984621,3195.9,3195.3,0.04803575]
[1720931990030,0.81500859,3195.9,3195.3,0.04803575]
[1720931990395,0.07823956,3195.8,3195.3,0.04803575]
[1720931990595,2.3428,3195.7,3195.0,0.81]
[1720931990998,2.3428,3195.7,3195.1,0.04807305]
[1720931991234,0.26705144,3195.6,3195.1,0.04807305]
[1720931993209,0.34529897,3195.6,3195.1,0.04807305]
[1720931993416,0.34529897,3195.6,3194.8,0.81]
[1720931993624,4.63799505,3195.7,3195.0,0.81]
[1720931994045,0.07824757,3195.6,3195.1,0.04658665]
[1720931995347,4.63799505,3195.7,3195.1,0.04658665]
[1720931996066,4.6381692,3195.7,3195.1,0.04658665]
[1720931997653,4.6381692,3195.7,3195.1,0.81]
[1720931997828,5.21625842,3195.7,3195.1,0.81]
[1720931998024,5.21625842,3195.7,3195.2,0.04657465]
[1720931999177,2.92088922,3195.7,3195.2,0.04657465]
[1720931999468,5.21607608,3195.7,3195.2,0.04657465]
[1720931999640,5.21621486,3195.7,3195.2,0.04657465]
[1720932000329,0.55439293,3195.6,3195.2,0.04657465]
[1720932001274,2.84971857,3195.6,3195.2,0.04657465]
[1720932001427,2.84971857,3195.6,3194.9,0.81]
[1720932001630,2.85011811,3195.6,3195.3,0.04656266]
[1720932001828,0.51929181,3195.5,3194.9,0.81]
[1720932002059,2.29572518,3195.6,3194.9,0.81]
[1720932002264,2.29572518,3195.6,3195.0,0.04659865]
[1720932002772,2.29572365,3195.6,3194.9,0.81]
[1720932007281,2.29572365,3195.5,3194.9,0.81]
[1720932008354,2.2972818,3195.5,3194.9,0.81]
[1720932009444,2.2972818,3195.4,3194.2,2.4256]
[1720932009643,2.4627,3195.2,3194.2,3.2356]
[1720932009890,2.37554036,3195.1,3194.3,0.04675847]
[1720932010044,2.2972818,3195.0,3194.3,0.04675847]
[1720932010389,2.2972818,3195.0,3194.2,3.2356]
[1720932010390,0.07825847,3194.9,3194.2,3.2356]
[1720932010682,2.37554023,3195.0,3194.2,3.2356]
[1720932011253,2.2972818,3195.0,3194.2,3.2356]
[1720932011442,2.2972818,3195.0,3194.4,0.81]
[1720932011643,2.82896415,3195.0,3194.4,0.81]
[1720932011891,2.82896415,3195.0,3194.5,0.04684818]
[1720932012225,0.53168235,3195.0,3194.5,0.04684818]
[1720932012343,2.83022865,3195.0,3194.5,0.04684818]
[1720932012543,2.2985463,3195.1,3194.6,0.81]
[1720932012741,2.2985463,3195.1,3194.8,0.81]
[1720932012962,2.2985463,3195.2,3194.9,0.04680018]
[1720932013276,2.2985463,3195.1,3194.9,0.04680018]
[1720932014788,3.25509846,3195.7,3195.0,0.81]
[1720932014985,2.30005341,3195.3,3195.1,0.04677618]
[1720932015347,2.30005341,3195.5,3195.2,0.81]
[1720932015574,10.57509846,3196.1,3195.4,0.81]
[1720932015575,2.30005341,3195.6,3195.4,0.81]
[1720932015754,2.30005341,3195.6,3195.5,0.04671681]
[1720932015974,2.30005341,3195.7,3195.5,0.04671681]
[1720932016381,2.30005341,3195.6,3195.5,0.04671681]
[1720932016687,2.30005341,3195.6,3195.5,0.85671681]
[1720932017894,2.30005341,3195.6,3195.5,1.17791849]
[1720932018206,2.30022552,3196.0,3195.5,1.17791849]
[1720932018410,2.30022552,3196.1,3195.8,0.81]
[1720932018709,2.7171414,3196.4,3196.0,0.81]
[1720932018710,2.30022552,3196.4,3196.0,0.81]
[1720932018993,2.30022552,3196.5,3196.3,0.81]
[1720932019170,2.30022552,3196.6,3196.3,0.81]
[1720932019354,2.30022552,3196.7,3196.5,0.81]
[1720932019562,2.30022552,3196.8,3196.6,0.04637454]
[1720932020482,2.30022552,3196.9,3196.6,0.04637454]
[1720932021104,2.30022552,3196.8,3196.1,2.3553]
[1720932021258,2.29730069,3196.8,3196.7,0.04636256]
[1720932021458,2.29730069,3196.8,3196.1,2.3553]
[1720932021459,2.52703076,3196.8,3196.1,2.3553]
[1720932021812,2.29730069,3196.8,3196.1,2.3553]
[1720932021962,2.29730069,3196.8,3196.2,0.0464225]
[1720932022493,2.29730069,3196.9,3196.2,0.0464225]
[1720932022698,0.07820922,3196.8,3196.2,0.0464225]
[1720932023058,2.29730069,3196.9,3196.2,0.0464225]
[1720932024061,2.83485179,3196.9,3196.2,0.0464225]
[1720932024260,4.57860069,3196.7,3196.2,0.0464225]
[1720932024492,4.57860069,3196.7,3195.4,2.4308]
[1720932024493,2.37552833,3196.6,3195.4,2.4308]
[1720932024683,2.29539267,3196.5,3195.4,2.4308]
[1720932024866,0.22953927,3196.4,3195.5,0.04568571]
[1720932025755,4.57677667,3196.7,3195.5,0.04568571]
[1720932026356,2.29547667,3196.7,3195.6,2.4308]
[1720932026556,5.29547667,3196.8,3195.7,0.0944852]
[1720932026764,0.5375511,3196.9,3195.8,0.5997781]
[1720932026765,2.83302777,3196.9,3195.8,0.5997781]
[1720932026964,3.0,3196.8,3195.9,3.12899]
[1720932027164,3.0,3196.8,3196.0,0.59464998]
[1720932027393,3.58330278,3196.8,3196.0,0.59464998]
[1720932027785,3.0,3196.8,3196.1,2.4308]
[1720932028001,5.29410989,3197.1,3196.2,0.04462599]
[1720932028304,5.29410989,3197.1,3196.3,0.04976465]
[1720932028305,3.0,3197.1,3196.3,0.04976465]
[1720932028524,2.29410989,3197.2,3196.4,3.67848]
[1720932028660,2.85629341,3197.2,3196.4,3.72308201]
[1720932029017,3.0,3197.1,3196.4,3.72308201]
[1720932029704,3.56218352,3197.2,3196.4,3.72308201]
[1720932030002,3.0,3197.2,3196.5,0.04974737]
[1720932030307,2.29410989,3197.5,3196.8,2.4308]
[1720932030519,2.70991731,3197.8,3196.9,0.599722]
[1720932030520,0.32777472,3197.8,3196.9,0.599722]
[1720932030667,2.29410989,3197.9,3197.0,0.04972144]
[1720932030869,2.29410989,3198.1,3197.1,0.55]
[1720932031085,0.32778103,3198.4,3197.1,0.59445955]
[1720932031285,2.2910002,3198.2,3197.1,0.59445955]
[1720932031490,2.61878123,3198.4,3197.1,0.59445955]
[1720932031662,2.55287832,3198.4,3197.3,3.12763]
[1720932031873,2.55287832,3198.4,3197.4,0.04969947]
[1720932032202,2.2910002,3198.3,3197.4,0.04434239]
[1720932032456,2.55287832,3198.4,3197.2,0.55]
[1720932032750,2.55287832,3198.4,3197.5,0.04426999]
[1720932032956,0.25528783,3198.3,3197.3,0.04429395]
[1720932033243,2.2813,3198.1,3196.6,3.12831]
[1720932033405,2.2813,3198.1,3196.7,0.04972756]
[1720932033601,5.2813,3198.1,3196.9,0.04433433]
[1720932034007,0.07819393,3198.0,3196.9,0.04433433]
[1720932034405,0.07819393,3198.0,3196.4,5.55931]
[1720932034645,3.07819393,3198.0,3196.5,0.04440116]
[1720932034850,0.76469667,3197.9,3196.5,0.04440116]
[1720932035338,0.76469667,3197.9,3196.7,3.12819]
[1720932035644,0.76469667,3197.9,3196.8,0.59419523]
[1720932036332,0.76469667,3197.9,3196.8,0.04419523]
[1720932036840,0.76469667,3197.9,3196.9,0.04421346]
[1720932037042,3.0,3198.0,3197.2,2.4308]
[1720932037257,2.28747273,3198.4,3197.2,2.4308]
[1720932037491,3.0,3198.5,3197.3,0.04257093]
[1720932039479,3.0,3198.5,3197.3,0.64226975]
[1720932039977,0.3277715,3198.6,3197.4,3.12752]
[1720932040299,7.32,3198.8,3197.6,2.308]
[1720932040591,7.32,3198.8,3197.7,0.64201924]
[1720932040795,7.32,3198.8,3197.8,0.04967556]
[1720932041094,7.32,3198.8,3197.9,0.04231783]
[1720932041687,7.32,3198.8,3197.7,0.55]
[1720932041892,7.32,3198.8,3198.0,0.04230585]
[1720932042064,3.0,3198.7,3197.8,0.04232981]
[1720932042248,3.0,3198.7,3198.1,0.04229388]
[1720932042449,3.0,3198.7,3197.7,3.1272]
[1720932042649,3.0,3198.7,3198.2,0.04219511]
[1720932042988,3.0,3198.7,3198.3,0.04218313]
[1720932042989,1.032,3198.6,3198.3,0.04218313]
[1720932043284,1.032,3198.6,3197.6,2.308]
[1720932043447,1.032,3198.6,3197.6,5.43532]
[1720932043668,1.032,3198.6,3197.7,0.04225877]
[1720932045175,0.07817373,3198.5,3197.7,0.04225877]
[1720932045370,0.35492737,3198.4,3197.1,2.308]
[1720932045619,0.35492737,3198.4,3197.2,0.04232811]
[1720932046419,0.07818268,3198.3,3197.2,0.04232811]
[1720932046579,0.35492737,3198.4,3197.2,0.04232811]
[1720932047382,3.0,3198.5,3197.2,0.04232811]
[1720932047582,1.032,3198.6,3197.2,3.72000811]
[1720932047973,1.032,3198.6,3197.3,0.04968601]
[1720932048315,1.032,3198.6,3197.4,0.5921437]
[1720932048519,1.032,3198.6,3197.4,3.1696737]
[1720932048724,0.4032,3198.5,3197.4,3.54164107]
[1720932049775,0.07817482,3198.4,3197.4,0.0421437]
[1720932050004,0.07817482,3198.4,3197.1,2.308]
[1720932050192,0.07817482,3198.4,3197.2,0.04215446]
[1720932051112,2.4391,3198.3,3197.2,0.04215446]
[1720932051313,0.32992279,3198.2,3197.2,0.04215446]
[1720932051616,3.25172748,3198.2,3197.3,0.04078711]
[1720932052119,3.25172748,3198.2,3197.0,3.17756995]
[1720932052433,3.25172748,3198.2,3197.1,3.67781]
[1720932052598,3.25172748,3198.2,3197.2,0.73523364]
[1720932052797,3.25172748,3198.2,3197.3,0.09049705]
[1720932053303,3.0,3198.2,3197.4,2.308]
[1720932053507,0.4032,3198.5,3197.4,2.308]
[1720932053681,1.032,3198.6,3197.5,0.04077636]
[1720932057082,2.51727492,3198.5,3197.5,0.04077636]
[1720932057287,0.3277094,3198.4,3197.5,0.03928328]
[1720932057483,0.07818662,3198.3,3196.9,2.308]
[1720932057683,0.07819496,3198.2,3197.6,0.04077496]
[1720932057879,0.07819483,3198.3,3196.9,2.308]
[1720932058119,0.41878536,3198.2,3196.9,2.308]
[1720932058428,2.4391,3198.1,3197.0,0.03951646]
[1720932058578,0.07819503,3198.0,3197.0,0.03951646]
[1720932058793,3.07819503,3198.0,3196.5,5.02541]
[1720932058991,3.07819503,3198.0,3196.6,0.03956441]
[1720932059192,0.5517295,3197.9,3196.6,0.03956441]
[1720932059531,0.07820175,3197.8,3196.6,0.03956441]
[1720932060334,0.0782017,3197.8,3196.6,0.03956441]
[1720932060551,0.07820167,3197.7,3196.6,0.03956441]
[1720932060837,0.5517295,3197.9,3196.6,0.03956441]
[1720932060990,0.35517295,3197.8,3196.6,0.03956441]
[1720932062499,0.35517295,3197.8,3196.7,3.12821]
[1720932062635,3.0,3198.0,3196.9,4.1672]
[1720932062841,3.0,3198.1,3197.0,0.04971407]
[1720932063169,3.0,3198.4,3197.2,3.12771]
[1720932063453,7.32,3198.8,3197.4,2.2702]
[1720932063656,7.32,3198.8,3197.5,0.04967414]
[1720932063857,7.32,3198.8,3197.5,3.21662414]
[1720932064031,7.32,3198.8,3197.6,3.67602241]
[1720932064209,7.32,3198.8,3197.7,0.049674]
[1720932064412,7.32,3198.8,3197.8,0.03953197]
[1720932064713,7.32,3198.8,3197.6,3.67602241]
[1720932065036,3.0,3198.7,3197.7,0.03947033]
[1720932065235,3.0,3198.7,3197.8,0.37154927]
[1720932065537,0.07816792,3198.6,3197.8,0.03945835]
[1720932065936,0.07816792,3198.6,3197.4,2.2702]
[1720932066140,0.07816792,3198.6,3197.9,0.03944449]
[1720932066326,0.07816792,3198.6,3197.4,2.2702]
[1720932066536,0.30781679,3198.5,3197.4,2.2702]
[1720932066853,0.07818086,3198.4,3197.5,0.0394924]
[1720932067376,0.30781679,3198.5,3197.5,0.0394924]
[1720932069461,2.36931231,3198.4,3197.5,0.0394924]
[1720932069669,2.36931231,3198.4,3196.9,4.1672]
[1720932069670,2.29253146,3198.4,3197.1,3.12781]
[1720932069876,2.29253146,3198.4,3197.6,0.03948419]
[1720932069877,5.29253146,3198.4,3197.6,0.03948419]
[1720932070183,5.29253146,3198.4,3197.1,4.17506629]
[1720932070184,3.0,3198.4,3197.4,2.2702]
[1720932070325,3.0,3198.4,3197.7,0.03947221]
[1720932070526,2.29253146,3198.5,3197.4,2.2702]
[1720932070752,2.29253146,3198.5,3197.5,0.539781]
[1720932071264,2.29253146,3198.6,3197.6,0.03948419]
[1720932071771,2.29253146,3198.5,3197.6,0.03948419]
[1720932072133,2.29253146,3198.4,3197.6,0.03948419]
[1720932072337,2.29253146,3198.4,3197.4,2.2702]
[1720932072338,2.3707089,3198.3,3197.4,2.2702]
[1720932072644,2.29253146,3198.2,3197.7,0.03947221]
[1720932072838,2.29253146,3198.2,3197.4,2.2702]
[1720932072839,0.52925315,3198.5,3197.4,2.2702]